bitfinex/quotes_ETHUSD_20260312
["timestamp","ask_amount","ask_price","bid_price","bid_amount"]
[1773322162742,0.47259079,2057.0,2056.8,0.0011]
[1773322163751,0.47259079,2057.0,2056.6,1.57498022]
[1773322165461,0.47259079,2057.0,2056.6,1.62360416]
[1773322166652,0.47259079,2057.0,2056.6,1.57498022]
[1773322167062,1.68795402,2057.0,2056.6,1.57498022]
[1773322167369,0.47259079,2056.9,2056.6,0.3593882]
[1773322167662,0.47259079,2056.9,2056.6,1.57498206]
[1773322168238,0.47259079,2056.9,2056.6,0.3593882]
[1773322168464,0.47259079,2056.9,2056.6,1.5749848]
[1773322169368,0.47259079,2056.9,2056.6,0.3593882]
[1773322169564,1.68801527,2056.9,2056.6,0.3593882]
[1773322169867,0.47259079,2056.8,2056.6,0.3593882]
[1773322170259,1.87235525,2057.0,2056.6,0.3593882]
[1773322170436,0.001,2057.1,2056.7,0.50264377]
[1773322171767,0.001,2057.1,2056.8,1.66950255]
[1773322175064,0.001,2057.1,2056.8,0.4540222]
[1773322175561,0.001,2057.1,2056.8,1.71811504]
[1773322176072,1.68770318,2057.5,2057.0,0.4540222]
[1773322176440,0.47259079,2057.5,2057.0,0.4540222]
[1773322176763,1.68766308,2057.5,2057.0,0.4540222]
[1773322176947,0.47259079,2057.4,2057.0,0.4540222]
[1773322177647,1.93639902,2057.6,2057.0,0.4540222]
[1773322177860,0.47259079,2057.5,2057.1,1.21530309]
[1773322178281,0.47259079,2057.5,2057.0,1.66933796]
[1773322178771,0.47259079,2057.5,2057.1,0.4540222]
[1773322179176,1.93637681,2057.6,2057.1,0.4540222]
[1773322180277,1.93637681,2057.6,2057.2,1.66926622]
[1773322180581,0.47259079,2057.5,2057.1,1.21525389]
[1773322180876,0.47259079,2058.1,2057.5,0.4540222]
[1773322182079,1.21559731,2058.3,2057.5,0.4540222]
[1773322182280,0.47359079,2058.3,2057.6,1.21500777]
[1773322182574,0.47359079,2058.3,2057.6,1.66902997]
[1773322182773,0.47359079,2058.3,2057.7,0.4540222]
[1773322184562,1.68824073,2058.3,2057.8,1.21488968]
[1773322184746,1.21564994,2058.3,2057.8,1.21488968]
[1773322184953,0.45142868,2058.2,2057.8,1.21488968]
[1773322185153,0.45142868,2058.2,2057.7,1.66643273]
[1773322186559,0.45142868,2058.2,2057.8,1.66639461]
[1773322186759,0.45142868,2058.1,2057.7,1.2149202]
[1773322187061,0.45142868,2058.1,2057.6,1.66649521]
[1773322187465,0.45142868,2058.1,2057.7,0.45152889]
[1773322188592,0.45142868,2058.1,2057.8,1.21488968]
[1773322188889,1.2146567,2058.2,2057.8,1.66641857]
[1773322189454,1.66707037,2058.3,2057.8,1.66641857]
[1773322191465,0.48289906,2058.2,2057.8,1.66641857]
[1773322193071,0.48289906,2058.2,2057.6,1.70372253]
[1773322193391,0.48289906,2058.2,2057.7,0.53735996]
[1773322193794,1.69759148,2058.2,2057.8,0.48986202]
[1773322193991,0.001,2058.0,2057.8,0.48986202]
[1773322196198,0.001,2058.0,2057.8,1.70473188]
[1773322196495,0.001,2058.0,2057.8,0.0011]
[1773322197699,0.001,2058.0,2057.8,1.21598722]
[1773322198178,0.001,2058.0,2057.8,0.0011]
[1773322198568,0.48389906,2058.0,2057.8,0.0011]
[1773322200174,0.001,2058.0,2057.8,0.48986202]
[1773322200501,0.001,2058.0,2057.5,4.86117001]
[1773322200502,0.48289906,2057.9,2057.5,0.0011]
[1773322200704,0.65694762,2057.8,2057.5,0.0011]
[1773322200908,0.65694762,2057.8,2057.3,0.0011]
[1773322200909,0.48289906,2057.7,2057.3,0.0011]
[1773322201070,0.48289906,2057.9,2057.3,0.0022]
[1773322201271,0.48289906,2057.7,2057.0,0.48876202]
[1773322201501,0.48289906,2057.7,2057.1,0.53737414]
[1773322201700,0.48289906,2057.7,2056.8,0.0011]
[1773322201701,1.13984668,2057.2,2056.8,0.0011]
[1773322202001,0.48289906,2057.1,2056.8,0.0011]
[1773322202197,2.35520885,2057.0,2056.8,0.0011]
[1773322202409,0.48289906,2056.7,2056.6,0.3593882]
[1773322202613,0.48289906,2056.7,2056.3,0.0011]
[1773322202911,7.12789075,2057.0,2056.4,0.48876202]
[1773322202912,0.48289906,2056.9,2056.4,0.48876202]
[1773322203071,0.48289906,2056.8,2056.4,0.48876202]
[1773322203278,1.21536217,2057.0,2056.3,0.0011]
[1773322203279,0.48289906,2056.6,2056.3,0.0011]
[1773322203472,0.48289906,2056.9,2056.3,0.0011]
[1773322204001,0.48289906,2056.8,2056.3,0.0011]
[1773322204203,0.48289906,2056.6,2056.3,0.0011]
[1773322204903,1.69831109,2057.0,2056.3,0.48986202]
[1773322205112,0.48289906,2056.9,2056.3,0.48986202]
[1773322205270,0.48289906,2056.8,2056.3,0.0011]
[1773322206200,0.48289906,2056.6,2056.3,0.0011]
[1773322206402,0.48289906,2056.6,2056.5,0.0011]
[1773322206971,0.48289906,2056.6,2056.0,0.48986202]
[1773322207179,1.21553945,2056.7,2056.0,0.0011]
[1773322207180,0.48289906,2056.4,2056.0,0.0011]
[1773322208110,0.48289906,2056.6,2056.0,1.70580677]
[1773322208294,1.69855673,2056.5,2056.0,0.48986202]
[1773322208494,0.48289906,2056.4,2056.0,0.0011]
[1773322209083,0.48289906,2056.8,2056.1,0.48876202]
[1773322209288,4.86098177,2057.2,2056.1,0.48876202]
[1773322209289,0.48289906,2057.2,2056.4,0.48876202]
[1773322209487,1.69806499,2057.4,2056.6,0.48876202]
[1773322209782,1.69806499,2057.4,2056.2,2.65403286]
[1773322209783,0.37115036,2057.6,2056.8,0.48876202]
[1773322209986,0.37115036,2057.6,2057.0,0.48876202]
[1773322210188,0.17115036,2057.6,2057.2,0.48876202]
[1773322210516,1.64381786,2058.3,2057.6,0.48876202]
[1773322210517,0.001,2058.3,2057.6,0.48876202]
[1773322210907,1.69849575,2058.3,2057.6,0.48876202]
[1773322211108,0.48489906,2058.2,2057.3,2.52876202]
[1773322211296,0.48289906,2058.2,2057.4,0.48876202]
[1773322211499,0.002,2058.1,2057.5,0.48876202]
[1773322211701,0.002,2058.2,2057.5,0.48876202]
[1773322212035,0.48289906,2058.1,2057.2,0.48876202]
[1773322212241,0.48289906,2057.9,2057.2,0.48876202]
[1773322212386,0.48289906,2057.8,2056.9,0.48876202]
[1773322212581,0.48289906,2057.6,2056.9,0.48876202]
[1773322212810,0.48289906,2057.6,2056.7,1.70428749]
[1773322213013,0.48289906,2057.4,2056.7,1.70428571]
[1773322213189,0.48289906,2057.8,2056.9,0.48876202]
[1773322213389,0.48289906,2057.6,2056.9,0.48876202]
[1773322213584,0.48289906,2057.4,2056.6,1.21554981]
[1773322214310,0.48289906,2057.2,2056.4,0.48876202]
[1773322214510,2.86000281,2057.3,2056.1,0.48876202]
[1773322214511,0.48289906,2057.0,2056.1,0.48876202]
[1773322214832,0.002,2057.2,2056.3,0.48876202]
[1773322215317,0.48489906,2057.1,2056.3,0.48876202]
[1773322215517,0.48289906,2057.1,2056.3,0.48876202]
[1773322215824,0.002,2057.1,2056.3,0.48876202]
[1773322216324,0.002,2057.1,2056.3,1.70450034]
[1773322216325,0.48489906,2057.1,2056.3,1.70450034]
[1773322216529,0.002,2057.1,2056.4,0.48876202]
[1773322216818,0.002,2057.1,2056.3,1.21573832]
[1773322216819,0.002,2057.1,2056.5,0.48876202]
[1773322217118,0.48489906,2057.1,2056.3,1.21573832]
[1773322217318,0.48489906,2057.1,2056.4,0.04862867]
[1773322217823,0.002,2057.1,2056.4,0.53739069]
[1773322218117,0.002,2057.1,2056.4,0.48876202]
[1773322218314,0.48489906,2057.1,2056.4,1.21571045]
[1773322218577,0.48489906,2057.1,2056.2,1.21579002]
[1773322218703,0.48289906,2056.8,2056.0,1.21704555]
[1773322218888,0.48289906,2056.8,2056.5,0.0011]
[1773322219093,0.48289906,2056.8,2056.0,0.0011]
[1773322219332,1.64281786,2056.9,2056.0,0.0011]
[1773322219333,0.48289906,2056.7,2056.0,0.0011]
[1773322219515,0.48289906,2056.4,2056.0,0.0011]
[1773322219832,2.12680384,2056.2,2055.8,0.0011]
[1773322219995,2.12680384,2056.2,2055.5,0.0011]
[1773322219996,0.48289906,2056.1,2055.5,0.0011]
[1773322220191,0.48489906,2056.1,2055.5,1.21734879]
[1773322220510,3.93490478,2056.5,2055.7,0.47311219]
[1773322220511,1.2156949,2056.5,2055.7,0.47311219]
[1773322220815,0.002,2056.4,2055.7,0.47311219]
[1773322221625,0.48875235,2056.4,2055.5,1.21734879]
[1773322222110,0.48675235,2056.4,2055.5,1.21734879]
[1773322222314,1.64390478,2056.7,2055.6,0.47311219]
[1773322222501,0.48675235,2056.7,2055.6,0.47311219]
[1773322222709,5.10625085,2056.9,2055.8,0.47311219]
[1773322222710,0.002,2056.6,2055.8,0.47311219]
[1773322222994,1.21546492,2056.9,2056.0,0.47311219]
[1773322223212,0.002,2056.8,2056.0,0.47311219]
[1773322223411,0.002,2056.8,2055.5,1.21734879]
[1773322223412,0.48675235,2056.7,2055.6,0.47311219]
[1773322223725,2.13065713,2056.6,2055.6,0.47311219]
[1773322223898,0.48675235,2056.5,2055.6,0.47311219]
[1773322224213,0.002,2056.4,2055.8,0.47311219]
[1773322224384,1.7022918,2056.7,2055.9,1.73771932]
[1773322224587,0.48675235,2056.5,2055.6,4.86463321]
[1773322224818,0.48675235,2056.5,2055.7,0.04864523]
[1773322225013,0.002,2056.4,2055.7,0.52175742]
[1773322225220,1.21553945,2056.7,2055.7,0.52175742]
[1773322225426,0.002,2056.6,2055.7,0.52175742]
[1773322225837,0.002,2056.6,2056.0,0.47311219]
[1773322226163,0.3704348,2057.0,2056.0,0.47311219]
[1773322226294,0.3704348,2057.0,2056.3,1.68888809]
[1773322226295,1.58580323,2057.0,2056.3,1.68888809]
[1773322226799,0.3704348,2057.0,2056.3,1.68888809]
[1773322227318,3.71646656,2057.0,2056.0,0.47311219]
[1773322227523,3.71646656,2057.0,2056.1,1.21585084]
[1773322227720,2.07256178,2057.0,2056.1,1.21585084]
[1773322229212,2.07256178,2057.0,2056.1,1.68896303]
[1773322229639,0.3704348,2057.0,2056.5,0.47311219]
[1773322230048,1.2149711,2057.7,2057.0,0.47311219]
[1773322230406,4.39778327,2057.9,2057.0,0.47311219]
[1773322230607,4.39778327,2057.9,2057.1,1.21530309]
[1773322230954,6.50322739,2058.1,2057.1,1.21530309]
[1773322230955,1.21471259,2058.1,2057.2,0.47311219]
[1773322231253,1.70146494,2058.1,2057.2,0.47311219]
[1773322231452,2.13065713,2057.8,2056.9,1.68849893]
[1773322231606,0.48675235,2057.8,2056.6,2.56011219]
[1773322231936,0.48675235,2057.8,2056.2,2.66052393]
[1773322231937,2.13065713,2057.4,2056.4,1.21569523]
[1773322232127,0.48675235,2057.4,2056.5,0.47311219]
[1773322232326,0.001,2057.5,2056.5,0.47311219]
[1773322232327,0.001,2057.5,2056.6,0.47311219]
[1773322232712,0.48675235,2057.4,2056.5,1.21560966]
[1773322233405,0.48675235,2057.3,2056.4,1.2156798]
[1773322233606,0.48675235,2057.3,2056.4,1.73742066]
[1773322233839,1.21606682,2057.5,2056.6,0.47311219]
[1773322234041,1.70281917,2057.5,2056.6,0.47311219]
[1773322234334,1.64390478,2057.4,2056.6,0.47311219]
[1773322234633,1.21518495,2057.3,2056.4,1.2156798]
[1773322234838,1.21518495,2057.3,2056.4,1.68879199]
[1773322235038,1.21518495,2057.3,2056.5,0.0486263]
[1773322235208,0.001,2057.5,2056.7,0.47311219]
[1773322235407,1.2160712,2057.5,2056.7,0.47311219]
[1773322236205,1.2160712,2057.5,2056.8,0.47311219]
[1773322236435,1.70282355,2057.5,2056.5,0.47311219]
[1773322236635,1.70282355,2057.5,2056.6,0.52173613]
[1773322236836,1.2160712,2057.5,2056.7,1.68865164]
[1773322237040,1.2160712,2057.5,2056.7,0.47311219]
[1773322237041,1.70282355,2057.5,2056.7,0.47311219]
[1773322237222,1.70282355,2057.5,2056.2,2.66052393]
[1773322237223,0.48675235,2057.3,2056.4,0.47311219]
[1773322237418,0.48675235,2057.3,2056.4,1.68882288]
[1773322237945,1.70282355,2057.5,2056.5,0.47311219]
[1773322238335,0.48675235,2057.4,2056.5,0.47311219]
[1773322238920,1.7019373,2057.3,2056.3,1.2157759]
[1773322239223,0.48675235,2057.2,2056.3,1.68888809]
[1773322239422,0.48675235,2057.2,2056.3,0.47311219]
[1773322239626,0.48675235,2057.2,2056.2,3.8763434]
[1773322239947,2.85908973,2057.3,2056.1,0.8569285]
[1773322239948,0.48675235,2056.8,2056.1,0.8569285]
[1773322240153,0.48675235,2056.6,2055.9,0.0011]
[1773322241013,0.48675235,2056.4,2055.9,0.0011]
[1773322241951,0.48675235,2057.0,2056.0,0.47311219]
[1773322242128,0.065536,2057.4,2056.3,0.47311219]
[1773322242129,0.48675235,2057.3,2056.3,0.47311219]
[1773322243147,1.70198125,2057.3,2056.5,0.47311219]
[1773322243343,1.2152289,2057.3,2056.5,0.47311219]
[1773322243548,0.36275186,2057.5,2056.4,1.21571678]
[1773322243549,0.001,2057.5,2056.8,0.48459297]
[1773322243931,1.21606854,2057.5,2056.8,0.48459297]
[1773322245030,1.21606854,2057.5,2056.9,1.21542126]
[1773322245031,0.001,2057.5,2056.9,1.21542126]
[1773322245545,0.001,2057.5,2056.8,0.48459297]
[1773322245842,0.001,2057.1,2056.8,0.48459297]
[1773322246022,0.001,2057.1,2056.8,1.70007284]
[1773322246216,0.001,2057.1,2056.8,0.48459297]
[1773322246433,0.001,2057.1,2056.6,1.21557326]
[1773322246844,0.001,2057.5,2056.7,0.48459297]
[1773322247024,0.001,2057.5,2056.9,1.70001423]
[1773322247948,1.21483463,2057.9,2057.2,0.48459297]
[1773322248737,1.21481734,2058.0,2057.2,0.48459297]
[1773322249129,1.21481734,2058.0,2057.3,1.21518495]
[1773322250554,1.21564453,2058.3,2057.6,0.46674511]
[1773322250925,0.001,2058.3,2057.6,0.46674511]
[1773322251151,1.21559969,2058.3,2057.6,0.46674511]
[1773322251451,0.001,2058.3,2057.8,0.46674511]
[1773322251653,0.001,2058.3,2057.5,0.46674511]
[1773322251854,0.49849906,2058.2,2057.2,0.46674511]
[1773322252038,0.49949906,2058.3,2057.2,0.46674511]
[1773322252349,0.49849906,2058.2,2057.2,0.46674511]
[1773322252526,0.49849906,2058.2,2057.0,8.61111716]
[1773322252527,0.49849906,2058.0,2057.0,2.106]
[1773322252955,0.49849906,2058.0,2057.0,3.32135859]
[1773322253152,0.49849906,2058.0,2057.2,0.46674511]
[1773322253339,0.49849906,2058.2,2057.2,1.68196921]
[1773322253541,1.64490478,2058.3,2057.1,0.04861212]
[1773322253542,0.49849906,2058.0,2057.1,1.21526086]
[1773322253731,0.49849906,2058.0,2057.0,3.32136077]
[1773322254265,0.001,2058.3,2056.9,0.46674511]
[1773322254266,0.49849906,2057.8,2056.9,0.46674511]
[1773322254449,0.49849906,2057.6,2056.6,0.46674511]
[1773322255135,0.49849906,2057.4,2056.3,1.68247645]
[1773322255350,1.71368401,2057.3,2056.3,1.68247645]
[1773322256654,0.49849906,2057.2,2056.3,1.68247645]
[1773322256952,0.49849906,2057.2,2056.2,4.86310363]
[1773322256953,0.49849906,2056.6,2056.1,0.0011]
[1773322257454,0.49849906,2056.4,2055.9,0.0011]
[1773322258230,2.85956245,2056.5,2055.9,0.0011]
[1773322258231,1.21565767,2056.5,2056.0,0.0011]
[1773322259647,1.71415673,2056.5,2056.0,0.0011]
[1773322260442,1.21565767,2056.5,2056.0,0.0011]
[1773322260834,4.86224119,2056.7,2056.0,0.0011]
[1773322261061,1.21550884,2056.8,2056.1,0.46674511]
[1773322261259,1.21534457,2057.1,2056.1,0.46674511]
[1773322261556,4.86121238,2057.2,2056.3,1.2157759]
[1773322261860,0.35902671,2057.3,2056.5,0.46674511]
[1773322262057,0.35902671,2057.3,2056.7,0.46674511]
[1773322262263,0.35902671,2057.3,2056.9,0.46674511]
[1773322262440,0.001,2057.8,2057.0,1.6893628]
[1773322262643,0.001,2057.8,2057.0,0.04545811]
[1773322262837,0.001,2057.8,2057.2,0.46674511]
[1773322263164,1.21593506,2057.8,2056.9,2.57874511]
[1773322263363,0.001,2057.8,2057.0,1.21536217]
[1773322263685,0.001,2057.8,2057.0,2.85926695]
[1773322263868,0.001,2057.8,2056.9,3.32741018]
[1773322263869,0.49949906,2057.8,2056.9,3.32741018]
[1773322264033,0.49949906,2057.8,2056.9,2.112]
[1773322264240,0.49849906,2057.7,2056.8,1.21547282]
[1773322264561,0.49849906,2057.7,2056.4,3.75590478]
[1773322264562,0.49849906,2057.5,2056.4,6.97474296]
[1773322264767,0.49849906,2057.5,2056.5,1.21561131]
[1773322265245,0.49849906,2057.5,2056.4,6.97474296]
[1773322265447,1.21524402,2057.2,2056.5,0.0486263]
[1773322265676,1.21512588,2057.4,2056.5,2.11064989]
[1773322265882,4.85982316,2057.7,2056.7,2.11064989]
[1773322266037,0.49849906,2057.6,2056.4,0.46674511]
[1773322266236,0.49849906,2057.6,2056.5,1.64390478]
[1773322266468,1.21594872,2057.8,2056.9,2.11064989]
[1773322266469,1.2159322,2057.8,2056.9,2.11064989]
[1773322266779,1.2159322,2057.8,2056.9,0.46674511]
[1773322266984,1.21592822,2057.8,2056.9,0.46674511]
[1773322267135,1.21592822,2057.8,2057.0,2.11064989]
[1773322267343,0.001,2057.8,2057.0,0.46674511]
[1773322267635,0.001,2057.8,2057.1,1.21530309]
[1773322267837,0.49949906,2057.8,2056.8,1.21542167]
[1773322268038,2.14240384,2057.1,2056.1,3.95059268]
[1773322268260,0.49849906,2057.1,2056.1,3.95059268]
[1773322269370,1.21518495,2057.3,2056.3,1.2157759]
[1773322269548,1.21518495,2057.3,2056.4,0.46674511]
[1773322269943,1.21518495,2057.3,2057.2,0.0011]
[1773322270142,1.21518495,2057.3,2056.4,0.46674511]
[1773322270341,1.21518495,2057.3,2057.0,0.0011]
[1773322270570,1.21518495,2057.3,2056.2,1.21579295]
[1773322270571,0.49849906,2057.2,2056.2,1.21579295]
[1773322271268,2.85908973,2057.3,2056.4,2.11064989]
[1773322271269,1.21518495,2057.3,2056.4,2.11064989]
[1773322271578,4.8607398,2057.4,2056.7,0.0011]
[1773322272049,0.001,2057.6,2056.7,0.0011]
[1773322272372,0.001,2057.6,2056.7,0.46784511]
[1773322272373,1.21510575,2057.5,2056.7,0.46784511]
[1773322272595,1.71360481,2057.5,2056.7,0.0011]
[1773322273371,0.001,2057.6,2057.1,0.46674511]
[1773322273674,0.001,2057.8,2057.2,3.32589391]
[1773322273892,0.001,2057.8,2057.3,0.46674511]
[1773322274746,1.21467499,2058.2,2057.2,1.21524402]
[1773322274747,1.21466566,2058.2,2057.5,1.64390478]
[1773322275085,1.21466566,2058.2,2057.4,0.46674511]
[1773322275572,0.49849906,2058.0,2056.8,3.79822546]
[1773322275769,0.49849906,2058.0,2056.9,0.46674511]
[1773322276355,0.49849906,2058.0,2057.0,1.64390478]
[1773322276554,0.001,2058.3,2057.4,1.64390478]
[1773322276762,0.001,2058.3,2057.4,2.11064989]
[1773322277051,1.64390478,2058.2,2057.1,0.46674511]
[1773322277251,0.49849906,2057.9,2056.8,3.79822546]
[1773322277477,1.21488968,2057.8,2056.8,3.79822546]
[1773322277673,1.71337063,2057.9,2057.0,1.64390478]
[1773322277896,1.21465358,2058.2,2057.3,0.46674511]
[1773322278055,1.21465358,2058.2,2057.4,2.11064989]
[1773322278376,1.71315264,2058.2,2057.1,0.46674511]
[1773322279163,1.21465358,2058.2,2057.1,0.46674511]
[1773322279495,1.21465358,2058.2,2056.7,4.86314115]
[1773322279496,0.49849906,2057.8,2056.7,4.86314115]
[1773322279706,0.49849906,2057.8,2056.7,1.68338456]
[1773322279916,1.21483065,2057.9,2056.7,0.0011]
[1773322279917,0.49849906,2057.2,2056.7,0.0011]
[1773322280200,2.14240384,2057.3,2056.7,0.0011]
[1773322280766,0.4769725,2057.2,2056.7,0.0011]
[1773322280981,2.67978073,2057.6,2056.7,0.0011]
[1773322280982,2.12087728,2057.5,2056.7,0.0011]
[1773322281295,0.4769725,2057.8,2056.7,0.0011]
[1773322281498,0.4769725,2057.2,2056.7,0.0011]
[1773322281802,0.4769725,2057.1,2056.7,0.0011]
[1773322282992,1.21515966,2057.4,2056.7,0.0011]
[1773322283500,1.21505771,2057.6,2056.7,0.0011]
[1773322283691,1.21505771,2057.6,2056.7,0.47149915]
[1773322283873,1.21505771,2057.6,2056.7,0.0011]
[1773322284077,0.4769725,2057.4,2056.7,0.0011]
[1773322284279,0.4769725,2057.2,2056.7,0.0011]
[1773322285578,1.69227559,2057.1,2056.7,0.0011]
[1773322286003,1.69227559,2057.1,2056.0,1.21705307]
[1773322286004,0.4769725,2056.8,2056.0,1.21705307]
[1773322286512,0.4769725,2056.6,2056.0,0.0011]
[1773322286803,1.64257173,2056.9,2056.0,0.0011]
[1773322286804,0.4769725,2056.4,2056.0,0.0011]
[1773322287307,1.64257173,2056.3,2056.0,0.0011]
[1773322287507,1.21589416,2056.1,2055.6,0.0011]
[1773322287795,1.21587159,2056.2,2055.6,0.0011]
[1773322288397,4.86298525,2056.4,2055.6,0.0011]
[1773322288774,5.33995775,2056.4,2055.6,0.0011]
[1773322288980,0.4769725,2056.3,2055.6,0.0011]
[1773322289390,1.21571678,2056.4,2055.6,0.0011]
[1773322289584,4.86274442,2056.5,2055.6,0.0011]
[1773322290106,0.4769725,2056.4,2055.6,0.0011]
[1773322291813,1.21565767,2056.6,2055.6,0.0011]
[1773322292011,1.21565767,2056.6,2055.6,0.47149915]
[1773322293114,1.69263017,2056.6,2055.6,0.47149915]
[1773322293312,0.4769725,2056.4,2055.6,0.0011]
[1773322293517,2.11954423,2056.3,2055.5,0.0011]
[1773322293689,1.6929258,2056.0,2055.5,0.0011]
[1773322293890,0.4769725,2055.9,2055.5,0.0011]
[1773322294508,1.21593541,2056.1,2055.5,0.0011]
[1773322294822,0.4769725,2055.9,2055.5,0.0011]
[1773322295219,1.21593541,2056.1,2055.5,0.0011]
[1773322295423,0.4769725,2056.0,2055.5,0.0011]
[1773322296122,1.21571678,2056.4,2055.5,0.0011]
[1773322296496,0.4769725,2056.3,2055.5,0.0011]
[1773322297014,2.11954423,2056.3,2055.5,0.0011]
[1773322297614,0.4769725,2056.6,2055.5,0.47149915]
[1773322297797,4.86123403,2057.2,2055.5,0.47149915]
[1773322297798,0.4769725,2057.4,2056.2,2.11297088]
[1773322298309,0.4769725,2057.4,2056.2,0.47039915]
[1773322298506,0.4769725,2057.2,2056.1,4.82177613]
[1773322298830,0.4769725,2056.8,2055.8,1.2160716]
[1773322299000,0.4769725,2057.1,2056.0,2.11297088]
[1773322299199,2.11954423,2057.1,2056.1,0.47039915]
[1773322299803,1.69233467,2057.0,2056.2,1.21583503]
[1773322300425,6.50402044,2057.1,2056.3,0.47039915]
[1773322300426,1.21533612,2057.1,2056.3,0.47039915]
[1773322301535,1.69230862,2057.1,2056.2,1.21583503]
[1773322301735,0.4769725,2057.0,2056.2,1.21583503]
[1773322302042,0.4769725,2056.8,2056.1,1.21589416]
[1773322302244,0.4769725,2056.8,2055.8,4.86426864]
[1773322302245,0.4769725,2056.8,2055.8,1.2160716]
[1773322302445,1.64257173,2056.6,2055.7,0.0011]
[1773322302618,1.21542126,2056.9,2055.7,0.0011]
[1773322302619,0.4769725,2056.3,2055.7,0.0011]
[1773322303646,0.4507164,2056.1,2055.7,0.0011]
[1773322303808,0.4507164,2056.4,2055.7,0.0011]
[1773322304014,1.2157759,2056.3,2055.7,0.0011]
[1773322304314,1.66648007,2056.4,2055.7,0.0011]
[1773322304519,1.66630188,2056.7,2055.7,0.47629804]
[1773322304719,1.66630188,2056.7,2055.8,1.64257173]
[1773322304947,1.66606526,2057.1,2056.2,2.11776977]
[1773322305246,1.66606526,2057.1,2056.2,0.47519804]
[1773322305410,3.30863699,2057.1,2055.9,2.59419804]
[1773322305610,1.66606526,2057.1,2056.0,2.917794]
[1773322305941,1.66606526,2057.1,2056.0,0.47519804]
[1773322306146,1.21534886,2057.1,2056.3,2.67565089]
[1773322306438,1.21534886,2057.1,2056.4,0.47519804]
[1773322307821,1.66606526,2057.1,2056.1,1.21589416]
[1773322308042,1.21534886,2057.1,2056.2,0.47519804]
[1773322308218,4.86121238,2057.3,2056.3,1.69097394]
[1773322308421,4.86121238,2057.3,2056.4,0.47519804]
[1773322308618,5.31192878,2057.3,2056.3,1.2157759]
[1773322308944,0.4507164,2057.2,2056.3,1.2157759]
[1773322309116,0.4507164,2057.1,2056.2,1.21580725]
[1773322309828,4.86121238,2057.3,2056.3,0.47519804]
[1773322310433,4.86121238,2057.3,2056.4,1.21571678]
[1773322311013,5.33706946,2057.3,2056.4,1.21571678]
[1773322311221,0.47585708,2057.1,2056.0,1.7106754]
[1773322311414,0.47585708,2057.1,2056.0,1.215935]
[1773322311954,0.47585708,2057.1,2056.0,1.7106754]
[1773322312452,1.21535425,2057.1,2056.3,0.4947404]
[1773322313250,1.21518495,2057.3,2056.4,0.4947404]
[1773322314352,1.21530309,2057.1,2056.4,1.21571678]
[1773322314517,1.21530309,2057.1,2056.4,1.26434545]
[1773322314722,1.21530309,2057.1,2056.4,1.21571678]
[1773322315025,1.69116017,2057.1,2056.4,1.21571678]
[1773322315254,1.21530309,2057.1,2056.4,1.21571678]
[1773322315459,0.47585708,2057.0,2056.4,1.21571678]
[1773322315920,1.21530309,2057.1,2056.4,1.21571678]
[1773322316122,1.21526057,2057.2,2056.4,0.4947404]
[1773322316329,1.21526057,2057.2,2056.3,2.115]
[1773322316330,1.21536217,2057.0,2056.3,2.115]
[1773322316538,0.47585708,2056.8,2055.8,1.71076294]
[1773322316734,0.47585708,2056.8,2055.7,1.21719304]
[1773322317366,0.47585708,2056.8,2055.7,0.0011]
[1773322317943,0.47585708,2056.8,2055.7,1.21722648]
[1773322318163,0.47585708,2056.3,2055.7,0.0011]
[1773322318536,0.47585708,2056.1,2055.7,0.0011]
[1773322318734,0.47585708,2056.1,2055.5,0.0011]
[1773322319356,0.47585708,2056.0,2055.5,0.0011]
[1773322320142,1.21583503,2056.2,2055.5,0.0011]
[1773322320459,1.2159533,2056.0,2055.5,0.0011]
[1773322321480,0.47585708,2055.9,2055.5,0.0011]
[1773322321661,1.2159533,2056.0,2055.5,0.0011]
[1773322321846,1.69181038,2056.0,2055.5,0.0011]
[1773322322490,1.21583503,2056.2,2055.5,0.0011]
[1773322322832,0.47585708,2056.1,2055.5,0.0011]
[1773322323036,0.47585708,2055.8,2055.3,0.0011]
[1773322323431,0.47585708,2056.1,2055.3,0.0011]
[1773322323834,0.47585708,2055.9,2055.3,0.0011]
[1773322324290,0.47585708,2055.8,2055.2,0.0011]
[1773322324591,1.692047,2055.6,2055.2,0.0011]
[1773322324792,0.47585708,2056.2,2055.2,0.0011]
[1773322325066,0.47585708,2056.1,2055.2,0.0011]
[1773322325653,0.47585708,2056.1,2055.5,0.0011]
[1773322325855,0.47585708,2055.5,2055.2,0.0011]
[1773322326095,0.47585708,2055.5,2054.1,2.71680904]
[1773322326096,0.47585708,2055.1,2054.1,1.21702303]
[1773322326688,0.47585708,2054.9,2053.9,1.71193695]
[1773322327044,0.47585708,2054.8,2053.6,0.4947404]
[1773322327283,0.47585708,2054.5,2053.4,1.21743364]
[1773322327595,0.47585708,2054.1,2053.0,1.21773015]
[1773322328650,0.47585708,2053.9,2053.0,1.21773015]
[1773322328855,0.47585708,2053.9,2052.9,1.57650793]
[1773322328856,1.77403889,2053.7,2052.9,1.57650793]
[1773322329054,1.77403889,2053.7,2052.9,1.21778219]
[1773322329055,0.47585708,2053.6,2052.9,1.21778219]
[1773322329260,1.69299437,2054.0,2052.9,1.71252259]
[1773322329460,0.47585708,2054.0,2052.9,1.71252259]
[1773322330261,2.24989597,2054.0,2052.9,1.21778219]
[1773322330467,0.47585708,2053.9,2052.9,1.21778219]
[1773322330849,1.21699882,2054.3,2053.1,0.4947404]
[1773322331050,3.19719008,2054.5,2053.2,0.4947404]
[1773322331278,4.41403519,2054.5,2053.3,2.564]
[1773322331500,0.47585708,2054.9,2053.5,1.77403889]
[1773322331667,0.52920179,2054.8,2053.8,0.4947404]
[1773322332274,0.47585708,2054.7,2053.5,2.5757404]
[1773322332468,0.47585708,2054.7,2053.5,2.081]
[1773322332469,0.47585708,2054.6,2053.5,2.081]
[1773322332668,2.27562068,2054.7,2053.6,0.4947404]
[1773322332669,0.50158179,2054.7,2053.6,0.4947404]
[1773322332991,0.50158179,2054.7,2053.8,1.71199621]
[1773322333194,0.50158179,2054.7,2053.9,3.8555114]
[1773322333391,0.50158179,2054.7,2053.9,0.4947404]
[1773322333595,0.30158179,2054.7,2054.1,0.4947404]
[1773322334301,0.30158179,2054.7,2054.2,7.43993382]
[1773322334501,0.30158179,2054.7,2054.2,0.46451882]
[1773322334674,0.47585708,2054.6,2053.6,4.86926035]
[1773322334879,0.47585708,2054.4,2053.6,1.21737436]
[1773322336403,0.47585708,2054.2,2053.2,1.21761153]
[1773322336602,0.47585708,2054.2,2053.3,11.834606]
[1773322336800,0.47585708,2054.2,2053.2,1.21761153]
[1773322337003,1.69267685,2054.6,2053.4,0.46451882]
[1773322337377,0.47585708,2054.5,2053.2,4.351475]
[1773322337578,0.47585708,2054.2,2053.1,4.87061967]